bitfinex/quotes_ETHUSD_20260313
["timestamp","ask_amount","ask_price","bid_price","bid_amount"]
[1773377461542,4.72974336,2112.2,2112.1,2.2851]
[1773377462171,4.72974336,2112.2,2112.0,0.0011]
[1773377463176,1.18371212,2112.0,2111.8,1.4463093]
[1773377463557,1.18371212,2112.0,2111.9,2.283]
[1773377463956,4.72984591,2112.1,2111.9,2.283]
[1773377465174,4.72984591,2112.1,2112.0,0.0011]
[1773377465756,1.18370258,2112.1,2112.0,0.0011]
[1773377471586,4.72984591,2112.1,2112.0,0.0011]
[1773377475362,4.72984591,2112.1,2111.8,0.0011]
[1773377475561,3.54614333,2112.0,2111.8,0.0011]
[1773377476703,3.54614333,2112.0,2111.9,2.28]
[1773377476896,3.54614333,2112.0,2111.8,0.0011]
[1773377477556,1.18376817,2111.9,2111.8,0.0011]
[1773377477961,1.18376817,2111.9,2111.8,2.2801]
[1773377478381,1.18376817,2111.9,2111.6,0.0011]
[1773377478382,3.54614333,2111.8,2111.6,0.0011]
[1773377479795,1.18388028,2111.7,2111.6,0.0011]
[1773377479965,1.18388028,2111.7,2111.6,2.2631]
[1773377481291,1.18388028,2111.7,2111.5,0.0011]
[1773377481499,1.18388028,2111.7,2111.3,0.00629131]
[1773377481500,3.93692548,2111.6,2111.3,0.00629131]
[1773377481668,3.93692548,2111.6,2111.3,0.0011]
[1773377481990,5.12091581,2111.6,2111.3,0.0011]
[1773377482392,5.12091581,2111.6,2111.3,0.00829105]
[1773377482597,1.18391764,2111.7,2111.3,0.00829105]
[1773377482992,0.001,2111.9,2111.5,0.00719105]
[1773377483895,0.001,2111.9,2111.7,0.05650489]
[1773377494585,0.001,2111.9,2111.6,0.0011]
[1773377501890,0.001,2111.9,2111.7,1.18387275]
[1773377505111,4.25042548,2111.9,2111.6,0.0011]
[1773377505313,4.25042548,2111.9,2111.7,2.27]
[1773377508089,4.24942548,2111.8,2111.7,2.27]
[1773377511507,4.24942548,2111.7,2111.6,0.0011]
[1773377511825,4.24942548,2111.7,2111.3,0.0011]
[1773377512723,4.24942548,2111.7,2111.4,2.27]
[1773377513202,5.43364441,2111.9,2111.4,2.27]
[1773377513620,5.43364441,2111.9,2111.4,3.45399483]
[1773377513806,5.43364441,2111.9,2111.5,0.03941903]
[1773377514521,5.43366288,2111.9,2111.5,0.03941903]
[1773377514702,0.001,2111.9,2111.5,0.03941903]
[1773377515002,1.18477171,2111.9,2111.5,0.03941903]
[1773377515836,1.18477171,2111.9,2111.5,1.22449526]
[1773377516196,0.001,2111.6,2111.5,1.22449526]
[1773377518503,0.001,2111.9,2111.5,1.22449526]
[1773377520233,0.001,2111.9,2111.5,1.18507623]
[1773377520932,4.24987548,2111.9,2111.5,1.18507623]
[1773377528236,4.24987548,2111.9,2111.7,0.0011]
[1773377529640,5.43364431,2111.9,2111.7,0.0011]
[1773377530035,4.24887548,2111.8,2111.5,0.0011]
[1773377530260,4.24832548,2111.6,2111.3,0.0011]
[1773377530555,4.24832548,2111.6,2111.4,2.269]
[1773377531209,4.24832548,2111.6,2111.1,0.0011]
[1773377532335,4.24832548,2111.4,2111.2,2.269]
[1773377534941,5.43239341,2111.4,2111.2,2.269]
[1773377535614,5.43239341,2111.4,2111.1,0.0011]
[1773377536324,1.18406793,2111.4,2111.1,0.0011]
[1773377536523,4.24832548,2111.3,2111.1,0.0011]
[1773377537041,4.24832548,2111.3,2111.2,2.269]
[1773377537245,5.43234999,2111.5,2111.2,2.269]
[1773377537545,4.24832548,2111.5,2111.2,2.269]
[1773377537842,5.43232994,2111.5,2111.2,2.269]
[1773377539541,4.24832548,2111.4,2111.2,2.269]
[1773377541448,4.24832548,2111.4,2111.1,0.02715447]
[1773377541655,4.24832548,2111.3,2111.2,2.268]
[1773377543455,4.24832548,2111.3,2111.1,0.0011]
[1773377546081,4.24832548,2111.3,2111.2,2.267]
[1773377547159,5.43243006,2111.3,2111.1,0.0011]
[1773377547371,4.24832548,2111.2,2111.1,0.0011]
[1773377548763,4.24832548,2111.2,2111.1,2.2671]
[1773377550162,5.43248614,2111.2,2111.0,0.0011]
[1773377550366,4.24832548,2111.2,2111.0,0.0011]
[1773377551359,1.18416843,2111.2,2111.0,0.0011]
[1773377551561,4.24832548,2111.1,2111.0,0.0011]
[1773377551747,4.24832548,2111.1,2111.0,2.2661]
[1773377553362,4.24832548,2111.1,2110.9,0.0011]
[1773377553945,4.24932548,2111.3,2110.9,1.1854214]
[1773377554138,5.4334339,2111.3,2110.9,1.1854214]
[1773377555245,5.4334339,2111.3,2111.0,2.264]
[1773377558169,4.24932548,2111.3,2111.0,2.264]
[1773377558364,4.24832548,2111.1,2111.0,2.264]
[1773377559072,4.24832548,2111.1,2110.9,0.0011]
[1773377560476,4.24777548,2111.0,2110.8,0.0011]
[1773377560642,4.24777548,2111.0,2110.9,2.262]
[1773377562669,5.43204833,2111.0,2110.9,2.262]
[1773377564674,5.43204833,2111.0,2110.8,0.0011]
[1773377565963,0.001,2110.9,2110.8,0.0011]
[1773377566167,0.001,2110.9,2110.8,2.2611]
[1773377569272,4.24877548,2110.9,2110.8,2.2611]
[1773377570754,5.43310443,2110.9,2110.8,2.2611]
[1773377572266,4.24877548,2110.9,2110.8,2.2611]
[1773377579886,0.001,2110.9,2110.8,2.2611]
[1773377580190,4.24877548,2110.9,2110.8,2.2611]
[1773377580368,4.24877548,2110.9,2110.6,0.0011]
[1773377581466,4.24877548,2110.9,2110.7,2.248]
[1773377582084,1.18438506,2110.8,2110.6,0.0011]
[1773377583295,1.18438506,2110.8,2110.7,2.249]
[1773377583621,5.43216054,2110.8,2110.7,2.249]
[1773377584089,5.43216054,2110.8,2110.6,0.0011]
[1773377585584,5.43216054,2110.8,2110.7,2.25]
[1773377586196,5.43216054,2110.8,2110.6,0.0011]
[1773377586791,5.43201418,2111.1,2110.6,0.0011]
[1773377587789,5.43201418,2111.1,2110.7,2.251]
[1773377590900,0.001,2110.9,2110.8,0.0011]
[1773377598988,4.24877548,2110.9,2110.8,0.0011]
[1773377606605,0.001,2110.9,2110.8,0.0011]
[1773377609191,4.24877548,2110.9,2110.6,0.0011]
[1773377609914,4.24877548,2110.9,2110.2,0.70158317]
[1773377609915,4.24777548,2110.6,2110.2,0.62010436]
[1773377610119,1.18466568,2110.3,2109.6,1.18505024]
[1773377610287,4.24777548,2110.2,2109.6,1.18505024]
[1773377610688,4.24777548,2110.2,2109.7,2.205]
[1773377611924,4.24777548,2110.2,2109.8,0.0011]
[1773377612304,4.24777548,2110.1,2109.8,0.0011]
[1773377612618,4.24777548,2110.7,2109.9,0.0011]
[1773377612788,4.24777548,2110.7,2109.7,3.38998877]
[1773377613518,4.24777548,2110.7,2109.8,0.0011]
[1773377614798,4.24777548,2110.5,2109.9,0.0011]
[1773377614997,4.24777548,2110.5,2109.8,0.0011]
[1773377615200,4.24777548,2110.5,2110.0,0.0011]
[1773377616787,4.24877548,2110.7,2110.1,0.0011]
[1773377617314,4.24877548,2110.7,2110.2,0.0011]
[1773377617519,4.24877548,2110.7,2110.1,0.0011]
[1773377618325,4.24877548,2110.7,2110.0,0.04849336]
[1773377618522,4.24877548,2110.7,2110.1,0.0011]
[1773377619714,0.001,2110.7,2110.2,0.0011]
[1773377619921,0.001,2110.7,2110.0,0.0011]
[1773377621411,4.24877548,2110.7,2110.0,0.0011]
[1773377624911,4.24877548,2110.7,2110.1,0.0011]
[1773377628037,5.43324733,2110.7,2110.1,0.0011]
[1773377628335,5.43324733,2110.7,2110.2,0.0011]
[1773377628336,4.24777548,2110.6,2110.2,0.0011]
[1773377628665,4.24777548,2110.4,2110.1,0.0011]
[1773377629007,4.24877548,2110.5,2110.1,0.0011]
[1773377629204,4.24877548,2110.5,2110.2,0.0011]
[1773377629408,4.24877548,2110.5,2110.1,0.0011]
[1773377632046,4.24877548,2110.5,2110.0,1.18593412]
[1773377632246,4.24877548,2110.5,2110.1,0.0011]
[1773377633517,0.001,2110.5,2110.2,0.0011]
[1773377633845,0.001,2110.5,2110.1,0.0011]
[1773377635145,4.24877548,2110.5,2110.1,0.0011]
[1773377638637,4.24877548,2110.5,2110.2,0.0011]
[1773377638836,4.24877548,2110.5,2110.3,2.245]
[1773377640850,4.24877548,2110.5,2110.3,2.2461]
[1773377642556,4.24877548,2110.5,2110.3,3.43074606]
[1773377643830,4.24877548,2110.5,2110.3,3.43184606]
[1773377645140,4.24877548,2110.5,2110.3,3.47923268]
[1773377647058,4.24877548,2110.5,2110.3,3.47813268]
[1773377648740,4.24877548,2110.5,2110.3,3.47923268]
[1773377649634,4.24877548,2110.5,2110.3,2.29458662]
[1773377650731,4.24877548,2110.5,2110.3,2.2472]
[1773377650935,4.24777548,2110.4,2110.3,2.2461]
[1773377655863,4.18330648,2110.4,2110.3,2.2461]
[1773377656068,4.18330648,2110.4,2110.3,2.2472]
[1773377656775,4.21444098,2110.3,2110.1,0.0011]
[1773377658058,4.21444098,2110.3,2110.2,2.216]
[1773377660164,3.64527197,2110.4,2110.2,2.216]
[1773377661952,4.829884,2110.4,2110.2,2.216]
[1773377666458,3.7287429,2110.3,2110.2,2.216]
[1773377667746,3.7287429,2110.3,2110.1,0.0011]
[1773377668771,1.18467292,2110.3,2110.1,0.0011]
[1773377668977,4.91341582,2110.3,2110.2,2.233]
[1773377669167,3.7287429,2110.2,2110.1,0.0011]
[1773377670453,3.7287429,2110.2,2110.1,2.2351]
[1773377672870,4.91339921,2110.4,2110.1,2.2351]
[1773377673883,3.7297429,2110.5,2110.1,2.2351]
[1773377678459,4.91335245,2110.4,2110.3,0.0011]
[1773377679489,3.7287429,2110.3,2110.1,2.2351]
[1773377681686,1.18467047,2110.3,2110.1,2.2351]
[1773377681990,3.7287429,2110.2,2110.1,2.2351]
[1773377692003,3.7297429,2110.2,2110.1,2.2351]
[1773377692304,3.89046364,2110.4,2110.1,2.2351]
[1773377694601,1.18466568,2110.3,2110.1,2.2351]
[1773377696906,0.001,2110.5,2110.2,3.88646287]
[1773377698414,3.89146364,2110.5,2110.2,3.88646287]
[1773377698909,3.89146364,2110.5,2110.1,6.12156287]
[1773377699111,5.07507319,2110.4,2110.1,6.12156287]
[1773377699985,5.07507319,2110.4,2110.1,0.0011]
[1773377700315,3.89046364,2110.3,2110.2,2.244]
[1773377700819,1.18460955,2110.4,2110.2,2.244]
[1773377701412,5.07507319,2110.4,2110.2,2.244]
[1773377703319,3.89046364,2110.3,2110.1,0.0011]
[1773377703532,3.89046364,2110.3,2110.2,2.245]
[1773377704222,3.89046364,2110.3,2110.1,0.0011]
[1773377704397,0.001,2110.2,2110.1,0.0011]
[1773377705404,0.001,2110.2,2110.1,2.2471]
[1773377715233,4.97528052,2110.3,2110.1,2.2471]
[1773377715433,0.001,2110.5,2110.2,3.93385174]
[1773377715804,1.1844996,2110.6,2110.3,3.88756287]
[1773377716131,1.18534802,2110.9,2110.3,3.88756287]
[1773377716333,0.001,2110.9,2110.3,3.88756287]
[1773377717919,0.001,2110.9,2110.5,3.88646287]
[1773377719807,0.001,2110.9,2110.7,3.88646287]
[1773377720008,0.001,2110.9,2110.8,6.13246287]
[1773377720826,0.001,2110.9,2110.8,2.246]
[1773377721021,3.96088619,2110.9,2110.8,2.246]
[1773377721217,3.96088619,2110.9,2110.6,3.82323597]
[1773377722304,3.96088619,2110.9,2110.7,2.246]
[1773377723242,5.14521882,2110.9,2110.7,2.246]
[1773377723442,3.96088619,2110.9,2110.7,2.246]
[1773377724443,3.96088619,2110.9,2110.8,2.246]
[1773377727448,5.14521514,2110.9,2110.6,3.82323597]
[1773377728531,5.14521514,2110.9,2110.7,0.0011]
[1773377728736,5.14521514,2110.9,2110.8,2.246]
[1773377729247,5.14521514,2110.9,2110.7,0.0011]
[1773377730653,5.14521514,2110.9,2110.8,2.247]
[1773377731022,5.14521514,2110.9,2110.7,0.0011]
[1773377732750,5.14521514,2110.9,2110.8,2.247]
[1773377736652,3.95988619,2110.8,2110.5,0.0011]
[1773377738851,1.18444118,2110.7,2110.5,0.0011]
[1773377739157,1.18444118,2110.7,2110.5,3.82433597]
[1773377740259,1.18444118,2110.7,2110.5,3.82543597]
[1773377740938,3.95988619,2110.8,2110.5,3.82543597]
[1773377741958,3.95988619,2110.8,2110.6,2.246]
[1773377742156,3.96088619,2110.9,2110.6,0.0011]
[1773377742350,3.96088619,2110.9,2110.7,0.0011]
[1773377742866,5.14527075,2110.9,2110.7,0.0011]
[1773377743164,1.18538456,2110.9,2110.7,3.82433597]
[1773377743940,1.18538456,2110.9,2110.7,0.0011]
[1773377744139,1.18538456,2110.9,2110.8,2.246]
[1773377744666,4.90824961,2110.9,2110.8,2.246]
[1773377745060,4.90824961,2110.9,2110.7,0.0011]
[1773377747346,1.18538456,2110.9,2110.8,2.246]
[1773377747669,1.18421839,2111.1,2110.9,3.79721468]
[1773377747841,1.18421839,2111.1,2110.9,3.79831468]
[1773377748864,1.18421839,2111.1,2110.8,2.246]
[1773377748865,3.72286505,2111.0,2110.8,2.246]
[1773377749043,3.72286505,2111.0,2110.7,0.0011]
[1773377749363,3.72286505,2111.0,2110.7,0.0022]
[1773377751066,1.18432895,2110.9,2110.7,0.0022]
[1773377751270,1.18432895,2110.9,2110.8,2.245]
[1773377752143,5.24224771,2110.9,2110.7,0.0011]
[1773377752343,5.24224771,2110.9,2110.7,0.0022]
[1773377754271,5.24224771,2110.9,2110.8,2.244]
[1773377754452,5.24224771,2110.9,2110.7,0.0022]
[1773377756772,5.24224771,2110.9,2110.8,2.244]
[1773377757072,5.24224771,2110.9,2110.7,0.0022]
[1773377759744,5.24224771,2110.9,2110.8,2.243]
[1773377760253,5.24224771,2110.9,2110.7,0.0022]
[1773377762167,4.05791876,2111.1,2110.7,3.72277946]
[1773377762375,4.05791876,2111.1,2110.8,0.0011]
[1773377762965,4.05791876,2111.1,2110.9,2.242]
[1773377763274,4.05791876,2111.1,2110.8,0.0011]
[1773377765278,1.18427285,2111.0,2110.8,0.0011]
[1773377765452,5.24219161,2111.0,2110.8,0.0011]
[1773377765853,5.24219161,2111.0,2110.9,2.241]
[1773377766055,5.24219161,2111.0,2110.8,0.0011]
[1773377766881,5.24219161,2111.0,2110.7,0.0011]
[1773377767083,5.24219161,2111.0,2110.8,0.0011]
[1773377768191,5.24219161,2111.0,2110.7,0.0011]
[1773377768962,0.001,2110.8,2110.7,0.0011]
[1773377769293,0.001,2110.8,2110.7,2.2411]
[1773377771087,0.001,2110.8,2110.7,5.96167946]
[1773377773387,0.001,2110.8,2110.7,5.96277946]
[1773377777895,1.18421675,2111.1,2110.8,3.72057946]
[1773377778101,5.24213551,2111.1,2110.8,0.0011]
[1773377778396,4.05791876,2111.0,2110.8,0.0011]
[1773377779094,5.24221144,2111.0,2110.8,0.0011]
[1773377782086,5.24221144,2111.0,2110.7,6.00905509]
[1773377782292,0.001,2110.9,2110.8,0.0011]
[1773377782490,0.001,2110.9,2110.8,0.0022]
[1773377792508,0.001,2110.9,2110.8,3.84178527]
[1773377792808,3.99773971,2111.3,2110.8,0.0011]
[1773377794608,3.99773971,2111.3,2111.0,0.0011]
[1773377795110,3.99673971,2111.1,2111.0,0.0011]
[1773377797814,5.18090037,2111.2,2111.0,0.0011]
[1773377798112,5.18090037,2111.2,2110.8,0.0011]
[1773377798113,3.99673971,2111.1,2110.8,0.0011]
[1773377800917,5.18095763,2111.1,2110.8,0.0011]
[1773377801618,3.99673971,2111.1,2110.8,0.0011]
[1773377802292,3.99673971,2111.1,2110.8,3.84068527]
[1773377802893,5.18096026,2111.1,2110.8,3.84068527]
[1773377803219,5.18096026,2111.1,2110.9,0.0011]
[1773377805718,3.99673971,2111.1,2110.9,0.0011]
[1773377806717,5.18096067,2111.1,2110.9,0.0011]
[1773377806920,5.18096067,2111.1,2111.0,0.0011]
[1773377807120,3.90338185,2111.0,2110.4,3.73277665]
[1773377807308,3.90338185,2111.0,2110.4,4.91738377]
[1773377807614,1.18432895,2110.9,2110.4,3.73277665]
[1773377807835,3.90338185,2111.0,2110.6,3.63081186]
[1773377807989,3.90338185,2111.0,2110.4,4.91737927]
[1773377808418,3.90338185,2111.0,2110.6,2.242]
[1773377810533,3.90338185,2111.0,2110.6,7.15813084]
[1773377810825,3.87052221,2111.0,2110.6,2.242]
[1773377811191,3.87052221,2111.0,2110.5,0.0011]
[1773377812523,3.87052221,2111.0,2110.6,2.243]
[1773377813492,5.05485116,2110.9,2110.6,2.243]
[1773377814493,3.87052221,2110.8,2110.6,2.243]
[1773377815094,5.05485116,2110.9,2110.6,5.87607818]
[1773377816238,1.18432895,2110.9,2110.6,5.87607818]
[1773377817220,5.05485116,2110.9,2110.6,5.87607818]
[1773377819414,5.05485116,2110.9,2110.8,0.0011]
[1773377819608,5.05485116,2110.9,2110.6,2.243]
[1773377819815,3.87052221,2110.8,2110.6,2.243]
[1773377820121,3.87052221,2110.8,2110.5,0.0011]
[1773377821417,5.05496339,2110.7,2110.5,0.0011]
[1773377822501,3.87052221,2110.6,2110.5,0.0011]
[1773377822743,3.87052221,2110.6,2110.5,2.2441]
[1773377826020,3.87052221,2110.7,2110.5,2.2441]
[1773377827538,3.87152221,2111.1,2110.5,5.87717818]
[1773377827740,3.87052221,2110.9,2110.5,5.87717818]
[1773377827939,3.87052221,2110.7,2110.5,2.2441]
[1773377830640,5.05497904,2110.7,2110.5,2.2441]
[1773377840247,5.05497904,2110.7,2110.4,3.63417818]
[1773377840418,5.05507563,2110.5,2110.4,0.0011]
[1773377841528,5.05507563,2110.5,2110.4,2.2461]
[1773377842349,1.18454419,2110.6,2110.4,5.91750163]
[1773377842550,8.34624432,2110.7,2110.4,5.91750163]
[1773377842848,4.79280183,2110.7,2110.4,5.91750163]
[1773377843142,3.60836065,2110.6,2110.4,2.2461]
[1773377843830,3.60936065,2110.6,2110.4,2.2461]
[1773377844214,3.60936065,2110.6,2110.5,0.0011]
[1773377845242,4.79385794,2110.6,2110.5,0.0011]
[1773377845442,3.60936065,2110.6,2110.5,0.0011]
[1773377845632,4.79385794,2110.6,2110.5,0.0011]
[1773377848863,3.60836065,2110.5,2110.4,2.2461]
[1773377857864,4.79385794,2110.6,2110.4,2.2471]
[1773377860764,4.7016,2110.6,2110.4,2.2471]
[1773377861062,4.79274571,2110.8,2110.4,2.2471]
[1773377861387,3.60836065,2110.7,2110.4,2.2471]
[1773377862744,0.001,2110.9,2110.4,2.2471]
[1773377862957,3.60836065,2110.7,2110.4,2.2471]
[1773377866952,4.74985424,2110.6,2110.4,2.2471]
[1773377867157,1.18535779,2110.9,2110.5,3.68350571]
[1773377867378,1.18533179,2110.9,2110.5,3.68350571]
[1773377867663,3.56535695,2110.8,2110.4,3.43170138]
[1773377868264,3.56535695,2110.8,2110.4,7.11520709]
[1773377868459,3.56535695,2110.8,2110.6,0.0011]
[1773377870171,0.001,2110.9,2110.6,3.68460571]
[1773377870468,3.56635695,2110.9,2110.6,3.68460571]
[1773377872142,3.56635695,2110.9,2110.6,4.8690941]
[1773377872846,3.56635695,2110.9,2110.6,4.86909294]
[1773377875775,3.56635695,2110.9,2110.6,3.68460571]
[1773377880172,3.56635695,2110.9,2110.6,4.86909684]
[1773377880984,3.56635695,2110.9,2110.8,0.0011]
[1773377881481,4.7506859,2110.9,2110.8,0.0011]
[1773377882053,3.56635695,2110.9,2110.8,0.0011]
[1773377884687,3.94970064,2110.8,2110.6,0.0011]
[1773377886288,5.13414182,2110.7,2110.6,0.0011]
[1773377889289,5.13408586,2110.8,2110.6,0.0011]
[1773377889483,3.94970064,2110.7,2110.6,0.0011]
[1773377892192,5.13414182,2110.7,2110.6,0.0011]
[1773377894594,5.13514182,2110.7,2110.6,0.0011]
[1773377899507,5.13514182,2110.7,2110.5,0.0011]
[1773377899675,3.94970064,2110.6,2110.3,0.0011]
[1773377900776,3.94970064,2110.6,2110.4,2.244]
[1773377901080,3.94970064,2110.6,2110.1,3.82000677]
[1773377901900,4.73278528,2110.5,2110.1,3.82000677]
[1773377902302,4.73278528,2110.5,2110.2,2.244]
[1773377903205,4.73278528,2110.5,2110.1,3.82000677]
[1773377903206,1.18455342,2110.5,2110.1,3.82000677]
[1773377903506,3.54823186,2110.4,2110.1,0.0011]
[1773377904572,1.18466568,2110.3,2110.2,2.244]
[1773377904777,4.73289754,2110.3,2110.2,2.244]
[1773377905201,4.73289754,2110.3,2110.1,0.0011]
[1773377905902,3.54823186,2110.3,2110.1,0.0011]
[1773377906681,4.73293042,2110.3,2110.2,2.243]
[1773377907088,4.73293042,2110.3,2110.1,0.0011]
[1773377909613,3.54823186,2110.2,2110.1,0.0011]
[1773377910400,3.54823186,2110.2,2110.0,0.0011]
[1773377911001,4.73295368,2110.2,2110.1,2.242]
[1773377911214,3.54823186,2110.1,2109.9,0.0011]
[1773377913012,3.54823186,2110.0,2109.3,3.81630518]
[1773377913211,1.1848133,2110.1,2109.3,3.86371427]
[1773377913522,1.1848133,2110.1,2109.5,3.81630518]
[1773377913686,1.1848133,2110.1,2109.7,3.81630518]
[1773377914113,4.73304516,2110.1,2109.7,3.81630518]
[1773377915491,3.54823186,2110.0,2109.7,3.81630518]
[1773377919025,4.73306598,2110.0,2109.9,0.0011]
[1773377923031,3.54823186,2110.1,2109.9,0.0011]
[1773377923327,4.73301265,2110.1,2109.9,0.0011]
[1773377923837,4.73301265,2110.1,2110.0,2.239]
[1773377924222,4.73301265,2110.1,2109.9,0.0011]
[1773377925340,4.73301265,2110.1,2110.0,2.239]
[1773377926344,4.73301265,2110.1,2109.9,0.0011]
[1773377927338,4.73301265,2110.1,2110.0,2.239]
[1773377929607,4.73301265,2110.1,2109.9,0.0011]
[1773377929830,3.45008663,2110.0,2109.9,0.0011]
[1773377930031,4.63485159,2110.2,2109.9,0.0011]
[1773377930341,1.1847043,2110.3,2109.9,3.80116265]
[1773377930734,4.63469877,2110.4,2110.0,3.77876669]
[1773377931128,4.63469877,2110.4,2110.1,6.01676669]
[1773377931439,0.001,2110.5,2110.2,3.77876669]
[1773377932637,0.001,2110.9,2110.2,3.77876669]
[1773377933425,0.001,2110.9,2110.4,3.77876669]
[1773377935645,0.001,2110.9,2110.6,3.77876669]
[1773377935851,0.001,2110.9,2110.8,3.77876669]
[1773377948852,0.001,2110.9,2110.7,3.4214141]
[1773377949458,0.001,2110.9,2110.7,7.20018079]
[1773377950532,3.60222588,2110.9,2110.7,2.237]
[1773377950732,3.60222588,2110.9,2110.7,3.42143817]
[1773377956359,0.002,2110.9,2110.7,3.42143817]
[1773377957637,3.60222588,2110.9,2110.7,2.237]
[1773377957838,3.60222588,2110.9,2110.7,3.42143627]
[1773377958572,3.60122588,2110.8,2110.7,3.42143627]
[1773377959168,0.001,2110.8,2110.7,3.42143627]
[1773377960558,3.45666735,2110.8,2110.6,0.0011]
[1773377960741,3.45666735,2110.7,2110.6,0.0011]
[1773377961064,3.45566735,2110.7,2110.4,0.0001]
[1773377961568,1.18533149,2110.9,2110.4,3.40910466]
[1773377961768,3.45566735,2110.8,2110.5,2.241]
[1773377964569,1.18444118,2110.7,2110.5,2.241]
[1773377964867,3.45566735,2110.8,2110.5,5.65000466]
[1773377965066,3.45566735,2110.8,2110.5,6.83455128]
[1773377965563,4.64006949,2110.8,2110.5,5.65000466]
[1773377965763,3.45566735,2110.8,2110.5,6.83452178]
[1773377966168,3.45566735,2110.7,2110.5,2.241]
[1773377966565,4.64013833,2110.7,2110.5,2.241]
[1773377967966,3.45566735,2110.6,2110.5,2.241]
[1773377969475,3.45566735,2110.6,2110.4,0.0001]
[1773377970058,4.64116605,2110.6,2110.4,0.0001]
[1773377970379,4.64116605,2110.6,2110.5,0.0011]
[1773377970753,3.45666735,2110.6,2110.5,2.2371]
[1773377972678,0.001,2110.6,2110.5,2.2371]
[1773377978681,0.001,2110.9,2110.6,3.40900466]
[1773377978858,1.18534031,2110.9,2110.6,3.40900466]
[1773377979056,3.45566735,2110.8,2110.5,2.2371]
[1773377980588,4.64010853,2110.7,2110.5,2.2371]
[1773377981515,3.45566735,2110.7,2110.5,2.2371]
[1773377982486,0.001,2110.9,2110.6,3.40900466]
[1773377982659,0.001,2110.9,2110.8,3.40900466]
[1773377984365,3.67602798,2111.6,2110.9,3.44779803]
[1773377984697,4.8600204,2111.5,2111.0,3.44779803]
[1773377984901,3.67602798,2111.5,2111.0,3.44779803]
[1773377985505,3.67602798,2111.5,2111.2,3.44779803]
[1773377986020,0.001,2111.7,2111.2,3.44779803]
[1773377986880,0.001,2111.7,2111.4,3.44779803]
[1773377987112,0.001,2111.7,2111.2,1.18412949]
[1773377987264,0.001,2111.7,2111.3,3.44779803]
[1773377987783,0.001,2111.7,2111.2,1.18412949]
[1773377987784,0.001,2111.9,2111.4,3.44779803]
[1773377989174,0.001,2111.9,2111.6,3.44779803]
[1773377989374,0.001,2111.9,2111.8,3.44779803]
[1773377990899,0.001,2112.3,2111.9,3.38236258]
[1773377991068,3.39469124,2112.2,2111.7,5.62236258]
[1773377991268,3.39469124,2112.2,2111.8,4.5661868]
[1773377991477,3.39469124,2112.1,2111.8,3.38236258]
[1773377994598,3.39469124,2112.0,2111.9,2.24]
[1773377994986,3.39469124,2112.0,2111.4,3.38236258]
[1773377995310,3.39469124,2111.8,2111.4,3.38236258]
[1773377995896,3.39469124,2111.8,2111.6,0.0011]
[1773377996474,3.39469124,2111.7,2111.6,0.0011]
[1773377996681,4.19152068,2111.7,2111.4,0.0011]
[1773377996892,3.39469124,2111.7,2111.4,0.0011]
[1773377997290,3.39469124,2111.7,2111.5,2.24]
[1773377998117,3.39469124,2111.7,2111.4,0.0011]
[1773377999188,3.39469124,2111.6,2111.4,0.0011]
[1773377999617,3.39469124,2111.6,2111.5,2.24]
[1773377999819,3.39469124,2111.6,2111.4,0.0011]
[1773378000311,4.19152068,2111.6,2111.2,1.86577686]
[1773378000516,3.39469124,2111.6,2111.2,6.43229359]
[1773378000715,1.18392491,2111.7,2111.3,3.38236258]
[1773378001019,1.18383477,2111.8,2111.3,3.42972676]
[1773378001217,4.57948366,2111.9,2111.4,3.38236258]
[1773378001397,3.39469124,2111.8,2111.3,0.04736418]
[1773378001588,3.39469124,2111.6,2111.2,1.86577686]
[1773378001789,3.39469124,2111.6,2111.2,3.04993632]
[1773378002092,1.18479242,2111.9,2111.3,3.38236258]
[1773378002520,3.39469124,2111.8,2111.3,3.38236258]
[1773378003191,4.57857152,2111.7,2111.3,3.38236258]
[1773378003390,4.57857152,2111.7,2111.4,5.61136258]
[1773378003787,1.18388028,2111.7,2111.4,5.61136258]
[1773378004043,4.57854959,2111.8,2111.4,5.61136258]
[1773378005420,3.39469124,2111.8,2111.4,3.41303117]
[1773378005726,0.001,2111.9,2111.5,3.38236258]
[1773378006019,0.001,2111.9,2111.5,3.42972227]
[1773378007713,0.001,2111.9,2111.7,3.38236258]
[1773378009298,3.39569124,2111.9,2111.6,0.001]
[1773378009726,3.39469124,2111.8,2111.6,0.001]
[1773378011018,0.001,2111.9,2111.6,3.38336258]
[1773378011215,3.39569124,2111.9,2111.6,3.38336258]
[1773378013013,3.39469124,2111.8,2111.6,0.001]
[1773378014210,3.39569124,2111.9,2111.6,3.38336258]
[1773378014397,0.001,2111.9,2111.6,3.38336258]
[1773378014598,3.39569124,2111.9,2111.6,3.38336258]
[1773378015100,0.002,2112.2,2111.7,3.38236258]
[1773378015101,3.39669124,2112.2,2111.7,3.38236258]
[1773378015403,3.39469124,2111.8,2111.6,0.001]
[1773378017623,4.57857152,2111.7,2111.6,0.001]
[1773378018823,1.18388028,2111.7,2111.4,2.23]
[1773378019010,3.39469124,2111.6,2111.4,2.23]
[1773378019212,3.39469124,2111.6,2111.2,1.86577686]
[1773378019716,3.39469124,2111.5,2111.2,1.86577686]
[1773378020123,3.39469124,2111.5,2111.2,1e-08]
[1773378020328,3.39469124,2111.5,2111.3,2.24]
[1773378020501,3.31861166,2111.3,2111.1,0.0011]
[1773378021595,4.50272571,2111.3,2111.2,2.24]
[1773378022308,4.50272571,2111.3,2111.1,0.0011]
[1773378023529,3.31861166,2110.8,2110.1,0.0011]
[1773378023735,3.31861166,2110.8,2109.9,0.0011]
[1773378023736,4.11603433,2110.0,2109.9,0.0011]
[1773378023920,0.35286691,2109.8,2109.6,0.0011]
[1773378024232,4.46890124,2109.8,2109.6,0.0011]
[1773378024422,3.31861166,2109.7,2109.4,0.0011]
[1773378024633,4.11603433,2109.4,2108.9,3.28884176]
[1773378025521,4.11603433,2109.4,2109.0,2.234]
[1773378025522,3.31861166,2109.4,2109.0,2.234]
[1773378025722,4.85647124,2109.8,2109.2,4.47412527]
[1773378025921,2.80398342,2109.7,2109.3,0.04740908]
[1773378026114,0.35286691,2109.8,2109.3,3.33625084]
[1773378026623,0.35286691,2109.8,2109.3,3.28884176]